bitfinex/quotes_SOLUSD_20260213
["timestamp","ask_amount","ask_price","bid_price","bid_amount"]
[1770971607399,0.4507116,79.579,79.541,0.49999598]
[1770971608392,0.4507116,79.577,79.543,0.49999598]
[1770971611492,0.46944075,79.569,79.544,12.57165845]
[1770971613591,0.46944075,79.559,79.54,12.57228183]
[1770971613787,0.46944075,79.559,79.532,12.57355529]
[1770971614189,0.46944075,79.559,79.533,0.46777388]
[1770971616015,0.46944075,79.559,79.534,12.57323911]
[1770971616296,0.46944075,79.559,79.535,0.49228679]
[1770971617295,0.46054295,79.571,79.541,0.49228679]
[1770971617994,0.46054295,79.571,79.543,0.49228679]
[1770971618173,0.46054295,79.559,79.542,12.57197455]
[1770971618370,0.46054295,79.559,79.53,13.06608585]
[1770971618570,0.46054295,79.559,79.53,12.57379906]
[1770971618993,0.46054295,79.559,79.53,13.06608585]
[1770971619179,0.46054295,79.559,79.531,0.49228679]
[1770971619502,0.46054295,79.557,79.531,0.49228679]
[1770971619789,0.46054295,79.557,79.532,12.57355529]
[1770971619998,0.46054295,79.557,79.533,0.49228679]
[1770971620982,0.46054295,79.557,79.532,12.57355529]
[1770971621184,0.46054295,79.549,79.522,0.49228679]
[1770971621389,0.46054295,79.539,79.521,12.57529457]
[1770971622301,0.46054295,79.539,79.512,0.49228679]
[1770971622680,0.46054295,79.548,79.521,0.49228679]
[1770971624302,0.46054295,79.548,79.523,0.49228679]
[1770971625000,40.28,79.562,79.531,0.49228679]
[1770971625001,0.46054295,79.562,79.531,0.49228679]
[1770971625499,4.17415922,79.56,79.531,0.49228679]
[1770971626199,0.46054295,79.562,79.532,44.00744353]
[1770971626386,0.46054295,79.562,79.533,0.49228679]
[1770971626885,4.63470217,79.56,79.533,0.49228679]
[1770971627092,0.46054295,79.559,79.533,0.49228679]
[1770971627402,0.46054295,79.559,79.532,12.57355529]
[1770971628507,0.46054295,79.559,79.528,12.5741877]
[1770971628710,0.46054295,79.549,79.517,0.49228679]
[1770971629606,0.46054295,79.549,79.52,4.66644601]
[1770971629806,0.46054295,79.549,79.52,4.17415922]
[1770971630006,0.46054295,79.549,79.521,0.49228679]
[1770971630906,0.46054295,79.549,79.522,12.57513644]
[1770971631207,0.46054295,79.547,79.522,12.57513644]
[1770971631507,0.46054295,79.547,79.523,0.49228679]
[1770971633192,0.46054295,79.547,79.525,0.49228679]
[1770971633507,0.46054295,79.547,79.521,12.57528816]
[1770971634492,0.46054295,79.545,79.515,12.57624347]
[1770971634688,0.46054295,79.545,79.516,0.49228679]
[1770971636607,0.46054295,79.543,79.516,0.49228679]
[1770971638198,0.46054295,79.543,79.517,12.57592716]
[1770971638492,0.46054295,79.543,79.518,0.49228679]
[1770971639614,0.46054295,79.543,79.521,0.49228679]
[1770971640409,0.46054295,79.543,79.521,13.06743957]
[1770971644112,0.46054295,79.543,79.522,0.48402388]
[1770971648112,0.46308737,79.539,79.512,12.57671797]
[1770971648301,0.46308737,79.539,79.513,0.48402388]
[1770971650018,0.46308737,79.539,79.515,0.48402388]
[1770971650693,0.46308737,79.544,79.515,0.48402388]
[1770971651219,40.66,79.545,79.515,0.48402388]
[1770971651400,0.46308737,79.544,79.515,0.48402388]
[1770971652505,0.46308737,79.539,79.517,0.48402388]
[1770971657011,0.46308737,79.539,79.518,12.575769]
[1770971657210,0.46308737,79.539,79.519,0.48402388]
[1770971657610,0.46308737,79.546,79.519,0.48402388]
[1770971660030,0.46308737,79.544,79.519,0.48402388]
[1770971660823,0.46308737,79.544,79.52,12.57545271]
[1770971661049,0.46308737,79.544,79.521,0.48402388]
[1770971664332,0.46308737,79.544,79.522,12.57513644]
[1770971664630,0.46308737,79.544,79.523,0.48402388]
[1770971664818,0.46308737,79.543,79.523,0.48402388]
[1770971665019,0.46308737,79.543,79.519,0.48402388]
[1770971666138,0.46308737,79.543,79.52,12.57545271]
[1770971666325,0.46308737,79.543,79.521,0.48402388]
[1770971669330,0.46308737,79.543,79.523,0.48402388]
[1770971672137,41.26462559,79.547,79.525,0.45106979]
[1770971672437,0.48462559,79.546,79.525,0.45106979]
[1770971672935,40.78,79.547,79.527,0.45106979]
[1770971673120,41.24,79.55,79.527,0.45106979]
[1770971675424,41.24,79.55,79.529,0.45433776]
[1770971680451,41.24,79.55,79.531,0.45433776]
[1770971682535,0.4974082,79.553,79.533,0.45433776]
[1770971683445,0.4974082,79.557,79.533,0.45433776]
[1770971684657,0.4974082,79.557,79.534,12.57323911]
[1770971684856,0.4974082,79.557,79.535,0.45433776]
[1770971685148,0.4974082,79.557,79.534,12.57323911]
[1770971685334,0.4974082,79.557,79.535,0.45433776]
[1770971688953,0.4974082,79.557,79.537,0.45433776]
[1770971690261,41.48,79.558,79.539,0.45433776]
[1770971690756,41.9774082,79.558,79.539,0.45433776]
[1770971691254,0.4974082,79.557,79.539,0.45433776]
[1770971692452,0.4974082,79.557,79.54,12.57229067]
[1770971692637,0.4974082,79.557,79.536,12.57279259]
[1770971693056,0.4974082,79.557,79.537,0.45433776]
[1770971694957,0.4974082,79.557,79.538,12.5726068]
[1770971695254,0.4974082,79.557,79.539,0.45433776]
[1770971696856,12.56800131,79.568,79.541,0.45433776]
[1770971697058,41.6,79.567,79.541,0.45433776]
[1770971697351,0.4974082,79.566,79.54,0.45433776]
[1770971697552,0.4974082,79.566,79.48,50.32669938]
[1770971697553,0.4974082,79.549,79.49,4.17242023]
[1770971697756,0.4974082,79.519,79.491,0.45433776]
[1770971698451,0.4974082,79.517,79.491,0.45433776]
[1770971698749,41.58,79.52,79.5,4.17242023]
[1770971698951,4.61729252,79.557,79.5,4.17242023]
[1770971698952,12.57283841,79.537,79.504,0.45433776]
[1770971699255,41.58,79.536,79.504,0.45433776]
[1770971700260,12.57244873,79.539,79.504,0.45433776]
[1770971700446,41.6,79.536,79.504,0.45433776]
[1770971700646,4.17242023,79.53,79.504,0.45433776]
[1770971701046,4.17242023,79.53,79.506,0.46311383]
[1770971701356,0.40196508,79.529,79.506,0.46311383]
[1770971701548,4.17242023,79.53,79.506,0.46311383]
[1770971701751,0.40196508,79.535,79.506,0.46311383]
[1770971701958,41.6,79.536,79.506,0.46311383]
[1770971702159,42.00196508,79.536,79.506,0.46311383]
[1770971702661,41.6,79.536,79.511,0.46311383]
[1770971702865,4.17242023,79.54,79.511,0.46311383]
[1770971703039,4.17242023,79.54,79.513,0.46311383]
[1770971703236,0.40196508,79.539,79.513,0.46311383]
[1770971704146,4.17242023,79.54,79.515,0.46311383]
[1770971704863,4.17288016,79.54,79.515,0.46311383]
[1770971705466,0.40196508,79.539,79.515,0.46311383]
[1770971706081,0.40196508,79.539,79.514,12.57640163]
[1770971706272,0.40196508,79.529,79.514,12.57640163]
[1770971707364,0.40196508,79.529,79.505,0.46311383]
[1770971708468,0.40196508,79.529,79.507,0.46311383]
[1770971710651,0.40196508,79.519,79.481,12.58162328]
[1770971710851,0.40196508,79.509,79.481,12.58162328]
[1770971711048,0.40196508,79.509,79.481,13.04473711]
[1770971711252,0.40196508,79.509,79.482,0.46311383]
[1770971711777,0.40196508,79.499,79.481,12.58162328]
[1770971712758,0.40196508,79.499,79.476,12.58241481]
[1770971713469,0.40196508,79.499,79.476,13.04552864]
[1770971714773,0.40196508,79.499,79.477,0.46311383]
[1770971715366,4.17288016,79.5,79.477,0.46311383]
[1770971715575,4.17288016,79.51,79.481,0.46311383]
[1770971715767,0.40196508,79.509,79.481,0.46311383]
[1770971717163,4.17288016,79.5,79.483,0.46311383]
[1770971717467,0.40196508,79.499,79.472,12.58304811]
[1770971717982,0.40196508,79.499,79.473,0.46311383]
[1770971719277,0.40196508,79.499,79.475,0.46311383]
[1770971720372,0.40196508,79.499,79.477,0.46311383]
[1770971721089,0.40196508,79.499,79.471,31.45801613]
[1770971721090,0.40196508,79.489,79.471,13.04622993]
[1770971721578,0.40196508,79.489,79.471,12.5831161]
[1770971721779,0.40196508,79.489,79.472,0.46311383]
[1770971722080,12.5789328,79.498,79.461,12.58474992]
[1770971722081,0.40196508,79.479,79.461,12.58474992]
[1770971722575,0.40196508,79.479,79.455,0.46311383]
[1770971722778,4.17288016,79.46,79.45,0.2]
[1770971722960,0.40196508,79.459,79.45,0.2]
[1770971723366,0.40196508,79.465,79.45,0.2]
[1770971723566,0.40196508,79.469,79.45,0.2]
[1770971724284,0.40196508,79.469,79.45,0.66311383]
[1770971725480,12.58368148,79.468,79.45,0.66311383]
[1770971725773,4.17288016,79.46,79.45,0.2]
[1770971725975,0.40196508,79.459,79.45,0.2]
[1770971726571,0.40196508,79.459,79.44,0.2]
[1770971727479,0.20196508,79.449,79.43,0.2]
[1770971727875,0.20196508,79.449,79.43,12.78966128]
[1770971728603,41.8,79.455,79.431,0.49901746]
[1770971728780,41.8,79.455,79.433,0.49901746]
[1770971728976,41.8,79.467,79.433,0.49901746]
[1770971729383,12.58363103,79.469,79.433,0.49901746]
[1770971730481,12.58363103,79.469,79.434,12.58906765]
[1770971730784,4.17288016,79.47,79.44,4.17288016]
[1770971730980,41.84,79.478,79.451,0.49901746]
[1770971731180,12.58193988,79.479,79.451,0.49901746]
[1770971731565,16.75477797,79.48,79.451,0.49901746]
[1770971732885,16.75477797,79.48,79.452,12.58621557]
[1770971733083,16.75477797,79.48,79.453,0.49901746]
[1770971734786,4.17288016,79.48,79.453,0.49901746]
[1770971735082,41.84,79.485,79.455,0.49901746]
[1770971735293,4.17288016,79.5,79.461,0.49901746]
[1770971735586,41.92,79.496,79.461,0.49901746]
[1770971738193,4.17288016,79.49,79.462,12.58463164]
[1770971738389,4.17288016,79.49,79.463,0.49901746]
[1770971738898,41.92,79.496,79.47,4.17288016]
[1770971739073,41.96,79.496,79.471,0.49901746]
[1770971739871,41.96,79.496,79.465,0.49901746]
[1770971743609,41.96,79.496,79.467,0.49901746]
[1770971745003,41.96,79.496,79.471,0.49901746]
[1770971745298,41.96,79.496,79.481,0.49901746]
[1770971745682,41.96,79.496,79.483,0.49901746]
[1770971747089,41.96,79.496,79.478,12.58194237]
[1770971747484,41.96,79.496,79.478,13.08095983]
[1770971748788,41.96,79.496,79.474,12.58272235]
[1770971748985,54.53937291,79.496,79.467,12.58383983]
[1770971749190,54.53937291,79.496,79.468,0.49901746]
[1770971749993,41.96,79.496,79.47,4.17288016]
[1770971750198,41.96,79.496,79.471,0.49901746]
[1770971750496,42.24,79.505,79.481,0.49901746]
[1770971750886,42.24,79.505,79.483,0.49901746]
[1770971751487,42.24,79.505,79.491,0.49901746]
[1770971751699,42.24,79.517,79.491,0.49901746]
[1770971753104,42.24,79.517,79.501,0.49901746]
[1770971754986,42.3,79.522,79.502,0.49901746]
[1770971755300,4.17288016,79.53,79.502,0.49901746]
[1770971755509,42.32,79.534,79.511,0.49901746]
[1770971755709,42.32,79.535,79.511,0.49901746]
[1770971757404,12.57323911,79.534,79.511,0.49901746]
[1770971757601,54.93323911,79.534,79.511,0.49901746]
[1770971759505,42.36,79.534,79.512,12.57671797]
[1770971760904,4.17288016,79.54,79.513,0.49901746]
[1770971761111,42.44,79.539,79.521,0.49901746]
[1770971761811,0.49528999,79.538,79.51,4.17288016]
[1770971762017,0.49528999,79.529,79.501,44.02460346]
[1770971762313,42.48,79.528,79.501,44.02460346]
[1770971762495,0.49528999,79.527,79.501,44.02460346]
[1770971762695,0.49528999,79.527,79.492,12.57988225]
[1770971762899,0.49528999,79.519,79.492,12.57988225]
[1770971763714,42.48,79.528,79.5,4.17288016]
[1770971763906,42.48,79.528,79.492,12.57988225]
[1770971763907,42.48,79.53,79.511,0.47938973]
[1770971764987,0.49528999,79.529,79.511,0.47938973]
[1770971765404,0.49528999,79.529,79.509,12.57703879]
[1770971767612,0.49528999,79.529,79.505,12.5777082]
[1770971767810,0.49528999,79.519,79.496,12.57924927]
[1770971769217,0.49528999,79.509,79.486,12.58076322]
[1770971769404,0.49528999,79.509,79.487,0.47938973]
[1770971769915,0.49528999,79.509,79.482,0.47938973]
[1770971770116,12.57276487,79.537,79.501,0.47938973]
[1770971770322,42.58,79.529,79.501,0.47938973]
[1770971770613,0.49528999,79.534,79.501,0.47938973]
[1770971770917,42.6,79.531,79.501,0.47938973]
[1770971774418,13.06931958,79.529,79.501,0.47938973]
[1770971774622,42.68,79.532,79.511,0.47938973]
[1770971775420,0.49528999,79.556,79.521,0.47938973]
[1770971775614,0.49528999,79.549,79.521,0.47938973]
[1770971775916,0.49528999,79.549,79.52,4.17370466]
[1770971775917,0.49528999,79.539,79.511,0.47938973]
[1770971777121,0.49528999,79.539,79.513,0.47938973]
[1770971779620,0.49528999,79.539,79.515,0.47938973]
[1770971780017,0.49528999,79.539,79.509,0.47938973]
[1770971781325,4.17370466,79.53,79.509,0.47938973]
[1770971781529,4.17370466,79.53,79.509,13.05645501]
[1770971781732,4.17370466,79.53,79.51,0.47938973]
[1770971782232,12.5726068,79.538,79.511,0.47938973]
[1770971782821,0.49528999,79.537,79.511,0.47938973]
[1770971785038,0.49528999,79.529,79.508,12.57725148]
[1770971785335,12.57292295,79.536,79.5,0.47938973]
[1770971785336,0.49528999,79.519,79.5,0.47938973]
[1770971786128,0.49528999,79.529,79.5,0.47938973]
[1770971786326,0.49528999,79.529,79.502,0.47938973]
[1770971787238,4.17370466,79.52,79.502,0.47938973]
[1770971787639,0.49528999,79.519,79.502,0.47938973]
[1770971788027,4.17370466,79.52,79.502,0.47938973]
[1770971788430,0.49528999,79.509,79.484,0.47938973]
[1770971788933,4.17370466,79.5,79.484,0.47938973]
[1770971789236,0.49528999,79.499,79.471,12.58320645]
[1770971789427,0.49528999,79.499,79.472,0.47938973]
[1770971791136,0.49528999,79.499,79.473,12.58288978]
[1770971791330,0.49750224,79.505,79.474,0.49881632]
[1770971791525,4.17370466,79.5,79.474,0.49881632]
[1770971791725,0.49750224,79.499,79.474,0.49881632]
[1770971794544,0.49750224,79.499,79.475,12.58257313]
[1770971794743,0.49750224,79.499,79.476,0.46619479]
[1770971796444,0.49750224,79.499,79.47,4.17370466]
[1770971796445,0.45161665,79.497,79.472,0.46619479]
[1770971797440,0.45161665,79.495,79.472,0.46619479]
[1770971799157,0.45161665,79.495,79.464,0.46619479]
[1770971800249,4.17370466,79.49,79.464,0.46619479]
[1770971800953,0.45161665,79.495,79.471,0.46619479]
[1770971801446,4.62532131,79.49,79.471,0.46619479]
[1770971801631,0.45161665,79.489,79.467,0.46619479]
[1770971803553,0.45161665,79.489,79.461,13.05098481]
[1770971803756,0.45161665,79.487,79.462,0.46619479]
[1770971803956,0.45161665,79.487,79.457,0.46619479]
[1770971805662,4.17370466,79.49,79.461,0.46619479]
[1770971805841,0.45161665,79.489,79.461,0.46619479]
[1770971807669,0.45161665,79.479,79.451,0.46619479]
[1770971810167,0.45161665,79.479,79.452,12.58621557]
[1770971810376,0.45161665,79.479,79.453,0.46619479]
[1770971811572,0.45161665,79.479,79.45,35.64003015]
[1770971811573,0.45161665,79.479,79.455,0.46619479]
[1770971814372,0.45161665,79.479,79.457,0.46619479]
[1770971814581,0.45161665,79.488,79.461,0.46619479]
[1770971814757,0.45161665,79.479,79.461,0.46619479]
[1770971815380,0.45161665,79.505,79.471,0.46619479]
[1770971816579,0.45161665,79.505,79.473,0.46619479]
[1770971816779,12.57738145,79.508,79.481,0.46619479]
[1770971817364,0.45161665,79.507,79.481,0.46619479]
[1770971818258,0.45161665,79.499,79.472,12.58304811]
[1770971818459,0.45161665,79.499,79.473,0.46619479]
[1770971818661,0.45161665,79.502,79.475,0.46619479]
[1770971818879,0.45161665,79.499,79.475,0.46619479]
[1770971820462,0.45161665,79.479,79.451,0.46619479]
[1770971820685,0.45161665,79.479,79.453,0.4525457]
[1770971821168,0.48745304,79.489,79.453,0.4525457]
[1770971821870,0.48745304,79.489,79.46,4.17370466]
[1770971822076,0.48745304,79.489,79.461,0.4525457]
[1770971822572,43.12,79.492,79.463,0.4525457]
[1770971822779,31.44260536,79.51,79.481,0.4525457]
[1770971822780,0.48745304,79.505,79.481,0.4525457]
[1770971826209,0.48745304,79.505,79.482,12.58146498]
[1770971826488,0.48745304,79.505,79.483,0.4525457]
[1770971827685,0.48745304,79.505,79.461,47.42]
[1770971827686,0.48745304,79.489,79.463,0.4525457]
[1770971828580,4.17656643,79.49,79.462,12.58463164]
[1770971828581,12.57725092,79.509,79.471,0.4525457]
[1770971828768,0.48745304,79.508,79.471,0.4525457]
[1770971829485,12.57750889,79.507,79.472,12.58304811]
[1770971829684,0.48745304,79.506,79.473,0.4525457]
[1770971830993,4.17656643,79.5,79.473,0.4525457]
[1770971831494,0.48745304,79.501,79.473,0.4525457]
[1770971833192,0.48745304,79.506,79.475,0.4525457]
[1770971833368,43.12,79.515,79.481,0.4525457]
[1770971833570,0.48745304,79.528,79.491,0.4525457]
[1770971833785,31.43545731,79.529,79.474,44.03956009]
[1770971833786,0.48745304,79.541,79.511,0.4525457]
[1770971833985,0.48745304,79.539,79.511,0.4525457]
[1770971834269,4.17656643,79.53,79.511,0.4525457]
[1770971835092,0.48745304,79.534,79.511,0.4525457]
[1770971835486,4.17656643,79.53,79.511,0.4525457]
[1770971835887,0.48745304,79.534,79.511,0.4525457]
[1770971836280,12.5733972,79.533,79.511,0.4525457]
[1770971836671,0.48745304,79.534,79.511,0.4525457]
[1770971836882,0.48745304,79.532,79.511,0.4525457]
[1770971837083,0.48745304,79.529,79.506,0.4525457]
[1770971837483,0.48745304,79.519,79.49,51.63656643]
[1770971837685,0.48745304,79.509,79.476,12.58241481]
[1770971837893,0.48745304,79.509,79.477,0.4525457]
[1770971839196,0.48745304,79.509,79.481,0.4525457]
[1770971839390,0.48745304,79.508,79.481,0.4525457]
[1770971839588,43.18,79.513,79.483,0.4525457]
[1770971839994,43.66745304,79.513,79.483,0.4525457]
[1770971840190,43.18,79.513,79.491,0.4525457]
[1770971840389,4.17656643,79.52,79.491,0.4525457]
[1770971840880,0.48745304,79.519,79.491,0.4525457]
[1770971841702,0.48745304,79.544,79.501,0.4525457]
[1770971841890,0.48745304,79.546,79.511,0.4525457]
[1770971842280,4.17656643,79.54,79.511,0.4525457]
[1770971842494,0.48745304,79.546,79.511,0.4525457]
[1770971842898,0.48745304,79.539,79.5,4.17656643]
[1770971843198,0.48745304,79.539,79.501,0.4525457]
[1770971844004,0.48745304,79.539,79.503,0.4525457]
[1770971844203,0.48745304,79.539,79.511,0.4525457]
[1770971845107,0.48745304,79.537,79.511,0.4525457]
[1770971846512,0.48745304,79.537,79.512,12.57671797]
[1770971846721,0.48745304,79.535,79.507,0.4525457]
[1770971847112,0.48745304,79.529,79.507,0.4525457]
[1770971847305,0.48745304,79.535,79.507,0.4525457]
[1770971847493,0.48745304,79.535,79.511,0.4525457]
[1770971850609,0.48745304,79.535,79.512,12.57671797]
[1770971850800,0.48745304,79.535,79.513,0.46964524]
[1770971851305,0.48745304,79.535,79.508,13.04699594]
[1770971851510,0.45348507,79.534,79.509,0.46964524]
[1770971851886,0.45348507,79.534,79.491,0.46964524]
[1770971852089,0.45348507,79.509,79.48,4.17656643]
[1770971852286,4.17656643,79.52,79.474,12.58273145]
[1770971852287,0.45348507,79.519,79.49,4.17656643]
[1770971852504,0.45348507,79.532,79.5,4.17656643]
[1770971852712,43.24,79.534,79.5,4.17656643]
[1770971852911,0.45348507,79.533,79.5,4.17656643]
[1770971853416,0.45348507,79.533,79.501,12.57845813]
[1770971853613,0.45348507,79.519,79.479,31.4544572]
[1770971853910,0.45348507,79.519,79.48,4.17656643]
[1770971854117,0.45348507,79.519,79.481,0.46964524]
[1770971854303,4.17656643,79.51,79.481,0.46964524]
[1770971854797,0.45348507,79.509,79.481,0.46964524]
[1770971856319,4.17656643,79.5,79.471,0.45147375]
[1770971856500,0.48030713,79.499,79.471,0.45147375]
[1770971858519,0.48030713,79.499,79.472,13.03452186]
[1770971858817,0.48030713,79.499,79.473,0.45147375]
[1770971859417,0.48030713,79.489,79.461,0.45147375]
[1770971859597,0.48030713,79.489,79.452,0.45147375]
[1770971860098,0.48030713,79.479,79.452,0.45147375]
[1770971860506,0.48030713,79.479,79.454,0.45147375]
[1770971861316,0.48030713,79.479,79.453,12.58605716]
[1770971861718,0.48030713,79.479,79.454,0.45147375]
[1770971862501,0.48030713,79.479,79.455,12.58574035]
[1770971862698,0.48030713,79.479,79.456,0.45147375]
[1770971864924,4.17656643,79.48,79.458,0.45147375]
[1770971865123,4.65687356,79.48,79.458,0.45147375]
[1770971865322,0.48030713,79.479,79.458,0.45147375]
[1770971865522,0.48030713,79.479,79.457,44.04898246]
[1770971865719,0.48030713,79.479,79.458,0.45147375]
[1770971866426,0.48030713,79.479,79.457,44.04898246]
[1770971867529,4.17656643,79.48,79.457,44.53944938]
[1770971867831,4.17656643,79.48,79.457,44.04898246]
[1770971868332,47.39656643,79.49,79.458,0.49046692]
[1770971870526,47.39656643,79.49,79.459,44.53834066]
[1770971870728,47.39656643,79.49,79.46,0.49046692]
[1770971871129,47.39656643,79.49,79.459,44.04787374]
[1770971871130,4.17656643,79.48,79.459,44.04787374]
[1770971872429,4.17656643,79.47,79.459,12.58510678]
[1770971872734,4.17656643,79.47,79.45,31.46632168]
[1770971875735,4.17656643,79.47,79.45,0.49046692]
[1770971876449,4.17656643,79.47,79.444,0.49046692]
[1770971876648,4.17656643,79.46,79.443,12.58764145]
[1770971877550,43.18,79.472,79.443,12.58764145]
[1770971877751,4.17656643,79.47,79.443,13.07810837]
[1770971878056,4.17656643,79.47,79.444,0.49046692]
[1770971878443,4.61729252,79.48,79.443,12.58764145]
[1770971878444,4.17656643,79.48,79.451,0.49046692]
[1770971878740,43.18,79.479,79.451,0.49046692]
[1770971879963,4.17656643,79.47,79.452,13.07668249]
[1770971880136,4.17656643,79.47,79.453,0.49046692]
[1770971881154,4.17656643,79.48,79.453,0.49046692]
[1770971882151,4.17656643,79.48,79.454,44.05064564]
[1770971882357,4.17656643,79.48,79.455,0.49046692]
[1770971882957,43.18,79.487,79.455,0.49046692]
[1770971883146,4.17656643,79.49,79.455,0.49046692]
[1770971883458,4.17656643,79.48,79.455,0.49046692]
[1770971884154,4.17656643,79.48,79.456,12.58558195]
[1770971884460,4.17656643,79.48,79.457,0.49046692]
[1770971885456,4.17656643,79.48,79.459,0.49046692]
[1770971886635,4.17656643,79.48,79.46,44.53778632]
[1770971886842,4.1794515,79.48,79.46,44.53778632]
[1770971887041,4.1794515,79.48,79.461,0.49046692]
[1770971888265,4.1794515,79.47,79.46,12.5849484]
[1770971888446,4.1794515,79.47,79.453,0.49046692]
[1770971888646,4.1794515,79.47,79.454,12.58589875]
[1770971888846,4.1794515,79.48,79.455,0.49046692]
[1770971890164,4.1794515,79.47,79.454,12.58589875]
[1770971890457,43.16,79.479,79.454,12.58589875]
[1770971890646,4.1794515,79.47,79.454,13.07636567]
[1770971890847,4.1794515,79.47,79.455,0.49046692]
[1770971891047,43.16,79.479,79.455,0.49046692]
[1770971891456,4.1794515,79.47,79.455,0.49046692]
[1770971892553,4.1794515,79.46,79.455,0.49046692]
[1770971892748,43.16,79.479,79.437,12.58859221]
[1770971892951,4.1794515,79.46,79.437,44.06007275]
[1770971894043,43.18,79.467,79.437,44.06007275]
[1770971894864,4.1794515,79.46,79.437,44.06007275]
[1770971896270,4.1794515,79.46,79.437,12.58859221]
[1770971897574,43.16,79.463,79.438,0.49046692]
[1770971897770,43.2,79.467,79.441,0.49046692]
[1770971898069,12.58212919,79.478,79.441,0.49046692]
[1770971898269,4.1794515,79.47,79.441,0.49046692]
[1770971899971,4.1794515,79.48,79.443,0.49046692]
[1770971900173,4.1794515,79.48,79.451,0.49046692]
[1770971900476,43.18,79.479,79.451,0.49046692]
[1770971903687,4.1794515,79.47,79.451,13.07674915]
[1770971903872,4.1794515,79.47,79.451,12.58628223]
[1770971904176,4.1794515,79.47,79.452,0.49046692]
[1770971906487,43.22,79.469,79.452,0.49046692]
[1770971907278,43.22,79.472,79.454,0.49046692]
[1770971907489,4.1794515,79.47,79.454,0.49046692]
[1770971910287,4.1794515,79.47,79.449,0.49046692]
[1770971910485,43.3,79.469,79.449,0.49046692]
[1770971911893,4.1794515,79.47,79.449,0.49046692]
[1770971912076,43.34,79.469,79.444,0.49046692]
[1770971913493,43.34,79.469,79.446,0.49046692]
[1770971916703,43.34,79.469,79.446,13.07757878]
[1770971917099,43.34,79.469,79.447,0.49046692]
[1770971919195,4.1794515,79.47,79.448,12.58684925]
[1770971919504,4.1794515,79.46,79.448,12.58684925]
[1770971919881,43.48,79.459,79.448,12.58684925]
[1770971920090,31.45349879,79.483,79.448,12.58684925]
[1770971920091,43.48,79.458,79.449,0.49046692]
[1770971920798,43.48,79.474,79.449,0.49046692]
[1770971921200,4.1794515,79.47,79.449,0.49046692]
[1770971921576,12.58321101,79.471,79.449,0.49046692]
[1770971921781,4.1794515,79.47,79.449,0.49046692]
[1770971922404,4.1794515,79.47,79.45,0.49046692]
[1770971926906,4.1794515,79.46,79.445,13.07770788]
[1770971927094,4.1794515,79.46,79.441,12.58792477]
[1770971927296,4.1794515,79.46,79.442,0.49046692]
[1770971927592,43.64,79.467,79.442,0.49046692]
[1770971927786,4.1794515,79.46,79.442,0.49046692]
[1770971928188,4.1794515,79.45,79.437,0.49046692]
[1770971928794,4.1794515,79.46,79.437,0.49046692]
[1770971929596,4.1794515,79.45,79.437,0.49046692]
[1770971929810,4.1794515,79.46,79.437,0.49046692]
[1770971931010,4.1794515,79.46,79.439,0.49046692]
[1770971931510,43.68,79.473,79.441,0.49046692]
[1770971931886,4.1794515,79.47,79.441,0.49046692]
[1770971932507,4.1794515,79.47,79.442,12.5877999]
[1770971933208,4.1794515,79.47,79.443,0.49046692]
[1770971933413,4.1794515,79.46,79.443,0.49046692]
[1770971934302,12.58352313,79.469,79.443,0.49046692]
[1770971935814,4.1794515,79.46,79.443,0.49046692]
[1770971936016,4.1794515,79.46,79.444,13.07794992]
[1770971936194,56.34352313,79.469,79.445,0.49046692]
[1770971937211,4.1794515,79.46,79.44,0.49046692]
[1770971940108,56.34352313,79.469,79.442,0.49046692]
[1770971940415,4.1794515,79.46,79.442,0.49046692]
[1770971940610,4.1794515,79.46,79.433,0.49891218]
[1770971941123,4.1794515,79.45,79.433,0.49891218]
[1770971942408,4.1794515,79.45,79.434,12.58906765]
[1770971943108,16.76600799,79.45,79.43,0.2]
[1770971943618,4.1794515,79.44,79.43,0.2]
[1770971945812,16.76770253,79.44,79.43,0.2]
[1770971946216,16.76770253,79.44,79.414,12.59215194]
[1770971946403,4.1794515,79.43,79.414,12.59215194]
[1770971946609,4.1794515,79.43,79.41,0.69891218]
[1770971946923,4.18472332,79.43,79.411,0.49891218]
[1770971947118,43.92,79.435,79.411,0.49891218]
[1770971947305,43.92,79.435,79.413,0.49891218]
[1770971947502,4.18472332,79.45,79.421,0.49891218]
[1770971947702,48.10472332,79.45,79.421,0.49891218]
[1770971948617,48.10472332,79.45,79.423,0.49891218]
[1770971948823,60.69131964,79.45,79.423,0.49891218]
[1770971950222,16.77131964,79.45,79.423,0.49891218]
[1770971950425,4.18472332,79.44,79.423,0.49891218]
[1770971950821,4.18472332,79.44,79.425,0.49891218]
[1770971951511,12.58684925,79.448,79.41,0.2]
[1770971951821,44.0,79.447,79.41,0.2]
[1770971952207,12.58684925,79.448,79.41,0.2]
[1770971952521,4.61729252,79.444,79.41,0.2]
[1770971952822,4.61729252,79.434,79.4,0.2]
[1770971953322,4.61729252,79.43,79.4,0.2]
[1770971955134,44.06451043,79.429,79.4,0.2]